[Event "45th FIDE Olympiad 2024"]
[Site "Budapest"]
[Date "2024.09.12"]
[Round "2.21"]
[White "Giri, Anish"]
[Black "Dardha, Daniel"]
[Result "1/2-1/2"]
[ECO "B30"]
[WhiteElo "2724"]
[BlackElo "2603"]
[Annotator "RC"]
[PlyCount "152"]
[EventDate "2024.09.05"]
[EventType "team-tourn"]
[EventCountry "HUN"]
[SourceTitle "playchess.com"]
[Source "ChessBase"]
[SourceQuality "1"]
[WhiteTeam "Netherlands"]
[BlackTeam "Belgium"]
[WhiteTeamCountry "NED"]
[BlackTeamCountry "BEL"]
[TimeControl "40/5400+30:1800+30"]

1. e4 {[%emt 0:00:03]} c5 {[%emt 0:00:08]} 2. Nf3 {[%emt 0:00:04]} Nc6 {[%emt 0:00:06]} 3. Bb5 {[%emt 0:00:07]} e6 {[%emt 0:00:06]} 4. Bxc6 {[%emt 0:00:53]} bxc6 {[%emt 0:00:05]} 5. d3 {[%emt 0:00:04]} Qc7 {[%emt 0:00:31]} 6. Nc3 {[%emt 0:00:37]} e5 {[%emt 0:06:33]} 7. O-O {[%emt 0:00:46]} Be7 {[%emt 0:05:14]} 8. b3 {[%emt 0:06:50]} d6 {[%emt 0:03:51]} 9. Ne2 {[%emt 0:07:55]} Nf6 {[%emt 0:04:31]} 10. Ng3 {[%emt 0:00:26]} O-O {[%emt 0:00:34]} 11. h3 {[%emt 0:00:03]} a5 {[%emt 0:03:31]} 12. a4 {[%emt 0:00:29]} Re8 {[%emt 0:04:48]} 13. Nh2 {[%emt 0:07:04]} d5 {[%emt 0:06:45]} 14. c4 {[%emt 0:03:29]} Be6 {[%emt 0:05:32]} 15. Rb1 {[%emt 0:06:01]} Rab8 {[%emt 0:08:19]} 16. Bd2 {[%emt 0:02:21]} Red8 {[%emt 0:02:15]} 17. Qe1 {[%emt 0:01:38]} Ra8 {[%emt 0:00:26]} 18. f4 {[%emt 0:01:14]} exf4 {[%emt 0:03:06]} 19. Bxf4 {[%emt 0:00:10]} Qb7 {[%emt 0:01:11]} 20. Qe2 {[%emt 0:04:27]} dxe4 {[%emt 0:04:27]} 21. dxe4 {[%emt 0:00:12]} Re8 {[%emt 0:01:20]} 22. Rf3 {[%emt 0:09:43]} Nd7 {[%emt 0:10:06]} 23. Rbf1 {[%emt 0:01:27]} f6 {[%emt 0:04:03]} 24. Re3 {[%emt 0:06:42]} Bf8 {[%emt 0:06:17]} 25. Nf5 {[%emt 0:01:42]} Rad8 {[%emt 0:02:53]} 26. Nf3 {[%emt 0:06:32]} Qc8 {[%emt 0:04:36]} 27. g4 {[%emt 0:02:40]} Nb8 {[%emt 0:05:18]} 28. Ng3 {[%emt 0:01:39]} Na6 {[%emt 0:00:43]} 29. e5 {[%emt 0:00:30]} fxe5 {[%emt 0:03:16]} 30. Bxe5 {[%emt 0:00:30]} Bf7 {[%emt 0:01:08]} 31. Bc3 {[%emt 0:02:29]} Rxe3 {[%emt 0:01:06]} 32. Qxe3 {[%emt 0:00:02]} Qe6 {[%emt 0:01:39]} 33. Ne5 {[%emt 0:02:12]} Bg6 {[%emt 0:00:04]} 34. Ne2 {[%emt 0:02:31]} Bc2 {[%emt 0:01:57]} 35. Nf4 {[%emt 0:01:28]} Qe8 {[%emt 0:00:20]} 36. Nh5 {[%emt 0:01:21]} Rd1 {[%emt 0:00:42]} 37. Rxd1 {[%emt 0:02:45]} Bxd1 {[%emt 0:00:02]} 38. Qg5 {[%emt 0:01:05]} Qe7 {[%emt 0:00:47]} 39. Qxe7 {[%emt 0:01:10]} Bxe7 {[%emt 0:00:03]} 40. Nxc6 {[%emt 0:00:02]} Bd6 {[%emt 0:01:22]} 41. Nxg7 {[%emt 0:43:41]} Bxb3 {[%emt 0:02:02]} 42. Ne8 {[%emt 0:00:00]} Bxa4 {[%emt 0:05:30]} 43. Nxd6 {[%emt 0:00:00]} Bxc6 {[%emt 0:00:03]} 44. Bxa5 {[%emt 0:00:00]} Bd7 {[%emt 0:14:59]} 45. Kh2 {[%emt 0:04:15]} Be6 {[%emt 0:00:00]} 46. Kg3 {[%emt 0:00:00]} Nb4 {[%emt 0:00:00]} 47. Kh4 {[%emt 0:00:00]} Nc2 48. Bc3 {[%emt 0:00:00]} Ne3 49. Ne4 {[%emt 0:00:00]} Bxc4 {[%emt 0:00:00]} 50. Nf6+ Kf7 {[%emt 0:00:56]} 51. Nxh7 {[%emt 0:00:00]} Nd5 {[%emt 0:00:00]} 52. Ng5+ {[%emt 0:00:00]} Kg6 53. Bd2 {[%emt 0:01:49]} Bf1 {[%emt 0:03:42]} 54. Kg3 {[%emt 0:00:00]} c4 {[%emt 0:00:29]} 55. h4 {[%emt 0:00:00]} c3 {[%emt 0:00:27]} 56. h5+ {[%emt 0:00:00]} Kg7 {[%emt 0:01:49]} 57. Bc1 {[%emt 0:00:00]} Be2 {[%emt 0:01:44]} 58. Ne6+ {[%emt 0:00:40]} Kf7 {[%emt 0:01:04]} 59. Nd4 {[%emt 0:02:15]} Bd1 {[%emt 0:00:06]} 60. Nf5 {[%emt 0:01:14]} Nf6 {[%emt 0:00:38]} 61. Ne3 {[%emt 0:00:35]} Bxg4 {[%emt 0:00:32]} 62. Nxg4 {[%emt 0:00:02]} Nxh5+ {[%emt 0:00:06]} 63. Kf3 {[%emt 0:00:01]} Nf6 {[%emt 0:00:08]} 64. Nf2 {[%emt 0:00:03]} Ke6 {[%emt 0:00:07]} 65. Ke3 {[%emt 0:00:02]} Nd5+ {[%emt 0:00:17]} 66. Kd4 {[%emt 0:00:03]} Nf6 {[%emt 0:00:42]} 67. Kxc3 {[%emt 0:00:04]} Kd5 {[%emt 0:00:03]} 68. Kd3 {[%emt 0:00:02]} Nd7 {[%emt 0:00:09]} 69. Bb2 {[%emt 0:00:06]} Ne5+ {[%emt 0:00:06]} 70. Ke2 {[%emt 0:00:50]} Nc4 {[%emt 0:00:07]} 71. Ba1 {[%emt 0:00:02]} Ne5 {[%emt 0:00:11]} 72. Ke3 {[%emt 0:00:01]} Nc4+ {[%emt 0:00:13]} 73. Kf4 {[%emt 0:00:02]} Nd6 {[%emt 0:00:07]} 74. Ng4 {[%emt 0:00:03]} Ke6 {[%emt 0:00:06]} 75. Ne3 {[%emt 0:00:02]} Nb5 {[%emt 0:00:04]} 76. Be5 {[%emt 0:00:16]} Nd6 {[%emt 0:00:05]} 1/2-1/2

[Event "45th FIDE Olympiad 2024"]
[Site "Budapest"]
[Date "2024.09.12"]
[Round "2.21"]
[White "Bhakta, Bahadur Monger"]
[Black "Oatlhotse, Providence"]
[Result "0-1"]
[ECO "D02"]
[WhiteElo "1911"]
[BlackElo "2239"]
[Annotator "ChessBase"]
[PlyCount "64"]
[EventDate "2024.09.05"]
[EventType "team-tourn"]
[EventCountry "HUN"]
[SourceTitle "playchess.com"]
[Source "ChessBase"]
[SourceQuality "1"]
[WhiteTeam "Bhutan"]
[BlackTeam "Botswana"]
[WhiteTeamCountry "BTN"]
[BlackTeamCountry "BOT"]
[TimeControl "40/5400+30:1800+30"]

1. d4 Nf6 2. Nf3 d5 3. Bf4 c5 4. dxc5 Nc6 5. e3 e6 6. c3 Bxc5 7. Nbd2 O-O 8. Bd3 Re8 9. Ne5 Bd6 10. Nxc6 bxc6 11. Bxd6 Qxd6 12. O-O Rb8 13. Qc2 h6 14. h3 Nd7 15. e4 Ne5 16. Rab1 c5 17. exd5 exd5 18. Rfe1 Bb7 19. Nf1 Qc6 20. f3 c4 21. Be2 Qb6+ 22. Kh1 Qf2 23. Nh2 Nd3 24. Bxd3 Rxe1+ 25. Rxe1 Qxe1+ 26. Bf1 Bc8 27. b3 g6 28. b4 Bf5 29. Qe2 Qxc3 30. Ng4 Bxg4 31. hxg4 Qxb4 32. Qe3 Qb1 0-1

[Event "45th FIDE Olympiad 2024"]
[Site "Budapest"]
[Date "2024.09.12"]
[Round "2.22"]
[White "Vandenbussche, Thibaut"]
[Black "Van Foreest, Jorden"]
[Result "0-1"]
[ECO "B50"]
[WhiteElo "2461"]
[BlackElo "2696"]
[Annotator "TA"]
[PlyCount "110"]
[EventDate "2024.09.05"]
[EventType "team-tourn"]
[EventCountry "HUN"]
[SourceTitle "playchess.com"]
[Source "ChessBase"]
[SourceQuality "1"]
[WhiteTeam "Belgium"]
[BlackTeam "Netherlands"]
[WhiteTeamCountry "BEL"]
[BlackTeamCountry "NED"]
[TimeControl "40/5400+30:1800+30"]

{[%evp 12,110,25,22,26,16,10,2,-4,-14,-9,-20,1,16,17,21,16,14,21,-4,-10,-6,0,0,8,0,14,1,28,0,0,0,0,0,0,0,0,0,0,0,0,0,0,-25,-3,-8,0,-103,-100,-100,-97,-108,-114,-112,-110,-131,-116,-133,-133,-173,-169,-194,-202,-211,-164,-150,-150,-192,-135,-204,-208,-173,-170,-220,-194,-182,-169,-222,-222,-234,-233,-229,-200,-400,-376,-395,-395,-395,-392,-422,-387,-421,-413,-417,-411,-662,-638,-692,-697,-708,-758]} 1. e4 {[%emt 0:00:03]} c5 {[%emt 0:00:13]} 2. Nf3 {[%emt 0:00:05]} d6 {[%emt 0:00:27]} 3. Bb5+ {[%emt 0:00:14]} Bd7 {[%emt 0:01:00]} 4. Bxd7+ {[%emt 0:00:06]} Nxd7 {[%emt 0:00:39]} 5. O-O {[%emt 0:00:43]} e6 {[%emt 0:01:06]} 6. b3 {[%emt 0:01:19]} Ngf6 {[%emt 0:00:27]} 7. Qe2 {[%emt 0:00:06]} g6 {[%emt 0:00:15]} 8. c4 {[%emt 0:03:34]} Bg7 {[%emt 0:01:53][%cal Of6e4]} 9. Nc3 {[%emt 0:03:37]} O-O {[%emt 0:06:33] The position is equal.} 10. d4 {[%emt 0:04:23]} cxd4 {[%emt 0:00:32]} 11. Nxd4 {[%emt 0:00:06]} a6 {[%emt 0:01:24][%cal Od6d5]} 12. Bb2 {[%emt 0:06:28]} Qa5 {[%emt 0:05:27]} 13. Rfd1 {[%emt 0:05:27]} Rfd8 {[%emt 0:01:30]} 14. Rac1 {[%emt 0:06:52]} Rac8 {[%emt 0:00:28]} 15. a3 {[%emt 0:09:27]} Qh5 {[%emt 0:02:10]} 16. Nf3 {[%emt 0:06:13]} Ne8 {[%emt 0:03:23]} 17. h3 {[%emt 0:09:44]} Rc6 {[%emt 0:03:20]} 18. Na2 {[%emt 0:05:48]} Bh6 {[%emt 0:08:07]} 19. Rc2 {[%emt 0:03:38]} Rdc8 {[%emt 0:00:42]} 20. e5 {[%emt 0:08:12]} Nxe5 {[%emt 0:00:30]} 21. Nxe5 {[%emt 0:00:19]} Qxe2 {[%emt 0:00:29]} 22. Rxe2 {[%emt 0:00:02]} dxe5 {[%emt 0:00:09]} 23. Bxe5 {[%emt 0:00:19]} Bf8 {[%emt 0:02:46]} 24. Nb4 {[%emt 0:06:52]} Rb6 {[%emt 0:00:50][%cal Oa6a5] ...a5! is the strong threat.} 25. Bd4 {[%emt 0:04:45]} Rd6 {[%emt 0:01:46]} 26. Red2 {[%emt 0:02:45]} f6 {[%emt 0:05:30]} 27. Nc2 {[%emt 0:02:24]} Kf7 {[%emt 0:00:40]} 28. c5 {[%emt 0:06:33]} Rd7 {[%emt 0:03:06][%cal Oe6e5]} 29. Be3 {[%emt 0:00:05]} (29. b4 $11) 29... Rxd2 $17 {[%emt 0:00:38]} 30. Rxd2 {[%emt 0:00:02]} Bxc5 {[%emt 0:02:28]} 31. Bxc5 {[%emt 0:00:17]} Rxc5 {[%emt 0:00:04][%mdl 4096] Endgame. KRN-KRN} 32. Rd7+ {[%emt 0:00:04]} Kg8 $1 {[%emt 0:00:04]} 33. Ne3 {[%emt 0:02:58]} Rc7 {[%emt 0:01:42]} 34. Rd8 {[%emt 0:00:12]} Kf7 {[%emt 0:00:27]} 35. g4 {[%emt 0:02:55]} Ke7 {[%emt 0:01:33]} 36. Rb8 {[%emt 0:00:07]} Nd6 {[%emt 0:01:36]} 37. Rh8 {[%emt 0:00:29]} Nf7 {[%emt 0:00:07]} 38. Rb8 {[%emt 0:00:26]} Ne5 {[%emt 0:01:52]} 39. Rh8 {[%emt 0:01:43] [#]} Kd6 {[%emt 0:00:10]} (39... Rc3 $1 $19 40. Rxh7+ Nf7) 40. f4 {[%emt 0:00:34] [#]} (40. Rd8+ $17 {was called for.} Rd7 41. Rc8) 40... Nd3 $1 $19 {[%emt 0:05:08]} 41. f5 {[%emt 0:04:12]} Nf4 {[%emt 0:00:59]} 42. Nc4+ {[%emt 0:04:03]} (42. h4 $142) 42... Kc5 {[%emt 0:00:25]} 43. fxe6 {[%emt 0:03:54]} Nxe6 {[%emt 0:00:13]} 44. Kf2 {[%emt 0:04:40]} (44. Re8 {was worth a try.} Nf4 45. h4) 44... Kd4 {[%emt 0:00:53]} 45. Re8 {[%emt 0:06:46]} Nc5 {[%emt 0:00:47]} 46. Nd2 {[%emt 0:01:21]} Kc3 {[%emt 0:00:28]} 47. Ke2 {[%emt 0:01:56]} (47. b4) 47... Rd7 {[%emt 0:00:17]} (47... Nxb3 48. Re3+ Kc2 49. Nxb3 $16) 48. Re3+ {[%emt 0:01:28]} Kc2 {[%emt 0:00:05]} 49. Nf3 {[%emt 0:01:39]} Nxb3 {[%emt 0:00:10]} 50. Ne1+ {[%emt 0:01:25]} Kb2 {[%emt 0:00:04]} 51. Nd3+ {[%emt 0:00:24]} Ka2 {[%emt 0:00:09]} (51... Kxa3 52. Nc5 Rd2+ 53. Kf1 $19) 52. h4 {[%emt 0:02:52]} a5 {[%emt 0:01:27]} (52... Kxa3 53. Nc5 Rd2+ 54. Ke1 $19) 53. g5 {[%emt 0:01:21]} (53. a4 $142) 53... fxg5 {[%emt 0:00:11] Black is clearly winning.} ({Not} 53... Kxa3 54. Nc5 (54. gxf6 $2 {perishes.} Rf7 $19) 54... Rd2+ 55. Ke1 $16) 54. hxg5 {[%emt 0:00:02]} a4 {[%emt 0:00:11]} 55. Ne5 {[%emt 0:00:57]} Rc7 {[%emt 0:00:06] Weighted Error Value: White=0.27 (precise) /Black=0.06 (flawless) .  Mistake:       	White=6     	Black=1      Inaccurate:     	White=2     	Black=1      OK:         	White=11    	Black=23     Best:        	White=2     	Black=6      Strong:       	---       	Black=1} 0-1

[Event "45th FIDE Olympiad 2024"]
[Site "Budapest"]
[Date "2024.09.12"]
[Round "2.22"]
[White "Notha, Moakofi"]
[Black "Mahendra, Gurung"]
[Result "1-0"]
[ECO "C62"]
[WhiteElo "1996"]
[BlackElo "1725"]
[Annotator "NA RC"]
[PlyCount "73"]
[EventDate "2024.09.05"]
[EventType "team-tourn"]
[EventCountry "HUN"]
[SourceTitle "playchess.com"]
[Source "ChessBase"]
[SourceQuality "1"]
[WhiteTeam "Botswana"]
[BlackTeam "Bhutan"]
[WhiteTeamCountry "BOT"]
[BlackTeamCountry "BTN"]
[TimeControl "40/5400+30:1800+30"]

1. e4 e5 2. Nf3 Nc6 3. Bb5 d6 4. c3 Bd7 5. O-O h6 6. d4 Qf6 7. Qa4 Nb8 8. Rd1 c6 9. Be2 b5 10. Qb3 a6 11. a4 Be6 12. d5 Bd7 13. dxc6 Bxc6 14. axb5 Bb7 15. bxa6 Bxe4 16. Qa4+ Bc6 17. Bb5 Ne7 18. a7 Bxb5 19. Qxb5+ Nd7 20. Qb7 Rd8 21. a8=Q Nf5 22. Qxd8+ Kxd8 23. Ra8+ Ke7 24. Ra7 Qe6 25. Nxe5 Kf6 26. Nxd7+ Kg6 27. Bf4 Be7 28. Nd2 Re8 29. Nf3 Bh4 30. g3 Bg5 31. Bxg5 f6 32. Re1 Qg8 33. Rxe8 Qxe8 34. Nxf6 gxf6 35. Qh7+ Kh5 36. Qxf5 fxg5 37. g4# 1-0

[Event "45th FIDE Olympiad 2024"]
[Site "Budapest"]
[Date "2024.09.12"]
[Round "2.23"]
[White "Warmerdam, Max"]
[Black "Maerevoet, Sim"]
[Result "1/2-1/2"]
[ECO "A07"]
[WhiteElo "2679"]
[BlackElo "2432"]
[Annotator "TA"]
[PlyCount "84"]
[EventDate "2024.09.05"]
[EventType "team-tourn"]
[EventCountry "HUN"]
[SourceTitle "playchess.com"]
[Source "ChessBase"]
[SourceQuality "1"]
[WhiteTeam "Netherlands"]
[BlackTeam "Belgium"]
[WhiteTeamCountry "NED"]
[BlackTeamCountry "BEL"]
[TimeControl "40/5400+30:1800+30"]

{[%evp 15,84,18,4,24,5,8,15,0,0,-2,10,0,14,-8,0,-12,-10,-42,-39,-60,-15,-5,0,0,0,0,16,21,26,31,18,10,99,86,68,18,118,121,111,96,92,86,122,19,9,9,14,7,35,20,15,0,0,0,0,0,0,0,12,0,8,8,8,8,8,8,28,28,28,28,28]} 1. Nf3 {[%emt 0:00:05]} d5 {[%emt 0:00:10]} 2. g3 {[%emt 0:00:05]} g6 {[%emt 0:00:10]} 3. Bg2 {[%emt 0:01:10]} Bg7 {[%emt 0:00:08]} 4. O-O {[%emt 0:01:04]} e5 {[%emt 0:00:11]} 5. d3 {[%emt 0:00:29]} Nc6 {[%emt 0:05:55]} 6. Nc3 {[%emt 0:00:25]} Nge7 {[%emt 0:00:43]} 7. e4 {[%emt 0:00:29]} O-O {[%emt 0:00:15]} 8. exd5 {[%emt 0:07:20]} Nxd5 {[%emt 0:00:46]} 9. Nxd5 {[%emt 0:07:06]} Qxd5 {[%emt 0:00:08]} 10. Re1 {[%emt 0:00:03][%cal Of3e5] Threatening Nxe5!} Qd8 {[%emt 0:18:10]} 11. Bd2 {[%emt 0:07:26] The position is equal.} Re8 {[%emt 0:04:42]} 12. b4 {[%emt 0:26:29]} a6 {[%emt 0:12:39][%cal Oe5e4]} 13. Ng5 {[%emt 0:05:47]} Nd4 {[%emt 0:02:51]} 14. Ne4 {[%emt 0:00:56]} Rb8 {[%emt 0:04:31]} 15. h4 {[%emt 0:07:29]} h6 {[%emt 0:03:12]} 16. c3 {[%emt 0:03:07]} Ne6 {[%emt 0:03:00][%cal Of7f5]} 17. h5 {[%emt 0:07:09]} f5 {[%emt 0:08:28]} 18. Nc5 {[%emt 0:00:09]} Nxc5 {[%emt 0:02:42]} 19. bxc5 {[%emt 0:00:02]} g5 {[%emt 0:03:55]} 20. d4 {[%emt 0:02:17]} e4 {[%emt 0:02:56]} (20... f4 $5) 21. f3 {[%emt 0:01:08]} b6 {[%emt 0:06:28]} 22. cxb6 {[%emt 0:08:05]} (22. fxe4 bxc5 23. dxc5 Bb7 $11) 22... Rxb6 {[%emt 0:01:06][%cal Oc7c5]} 23. fxe4 {[%emt 0:00:02]} c5 {[%emt 0:02:13]} 24. dxc5 {[%emt 0:02:00]} Rb2 {[%emt 0:00:36]} 25. Be3 {[%emt 0:03:35]} (25. exf5 $1 $14 Bf8 26. Be3 Qxd1 27. Raxd1 Rxe3 28. Rxe3 Bxc5 29. Rd8+ Kf7 30. Rxc8 (30. Bd5+ Kf6 $16) 30... Bxe3+ 31. Kh1) 25... Bxc3 {[%emt 0:05:47] [#]} (25... Qc7 $1 $11 {keeps the balance.}) 26. Qxd8 $1 $16 {[%emt 0:00:48]} Rxd8 {[%emt 0:00:04]} 27. Rad1 {[%emt 0:01:53]} Re8 {[%emt 0:00:32] [#]} 28. Rf1 {[%emt 0:00:53]} fxe4 {[%emt 0:05:02][%cal Oc8g4]} 29. Rd6 {[%emt 0:00:59]} ({Better is} 29. c6 $16 {aiming for c7.} Be5 30. Bxe4) 29... Re2 $1 $11 {[%emt 0:03:35]} 30. Bd4 {[%emt 0:03:17]} Bxd4+ {[%emt 0:00:20]} 31. Rxd4 {[%emt 0:00:01] Threatens to win with Rd6.} Rc2 {[%emt 0:03:02]} 32. Bxe4 {[%emt 0:00:53]} (32. Rxe4 $2 {perishes.} Rxg2+ 33. Kxg2 Rxe4 $19) 32... Rxc5 {[%emt 0:00:15]} 33. Rf6 {[%emt 0:01:16]} Re6 {[%emt 0:01:05]} 34. Rxe6 {[%emt 0:02:10]} ({But not} 34. Bd5 $2 Rxd5 35. Rxd5 Rxf6 $19) 34... Bxe6 {[%emt 0:00:05][%mdl 4096] Endgame. KRB-KRB} 35. Rd6 {[%emt 0:00:17][%csl LRa6,LRe6]} Bxa2 {[%emt 0:00:59]} 36. Rg6+ {[%emt 0:00:28]} Kf8 {[%emt 0:00:14]} 37. Rxa6 {[%emt 0:00:36]} Bd5 {[%emt 0:01:06]} 38. Bxd5 {[%emt 0:01:02]} Rxd5 {[%emt 0:00:03]} 39. Rxh6 {[%emt 0:00:06]} g4 {[%emt 0:00:35]} 40. Kf2 {[%emt 0:00:48]} Kg7 {[%emt 0:00:38]} 41. Rg6+ {[%emt 0:30:10]} Kf7 {[%emt 0:30:07]} 42. Rxg4 {[%emt 0:00:08] Hoping for Rf4+.} Rxh5 {[%emt 0:00:04] Weighted Error Value: White=0.12 (very precise) /Black=0.16 (very precise) .  Mistake:       	White=2     	Black=2      Inaccurate:     	White=1     	Black=3      OK:         	White=15    	Black=13     Best:        	---       	Black=2      Strong:       	White=1     	Black=1} 1/2-1/2

[Event "45th FIDE Olympiad 2024"]
[Site "Budapest"]
[Date "2024.09.12"]
[Round "2.23"]
[White "Suk, Raj Monger"]
[Black "Monnaatsheko, Keletshabile"]
[Result "1-0"]
[ECO "C01"]
[WhiteElo "1821"]
[BlackElo "2064"]
[Annotator "NA"]
[PlyCount "73"]
[EventDate "2024.09.05"]
[EventType "team-tourn"]
[EventCountry "HUN"]
[SourceTitle "playchess.com"]
[Source "ChessBase"]
[SourceQuality "1"]
[WhiteTeam "Bhutan"]
[BlackTeam "Botswana"]
[WhiteTeamCountry "BTN"]
[BlackTeamCountry "BOT"]
[TimeControl "40/5400+30:1800+30"]

1. e4 e6 2. d4 d5 3. Nc3 Bb4 4. exd5 exd5 5. a3 Bxc3+ 6. bxc3 Ne7 7. Rb1 O-O 8. Bd3 Re8 9. Ne2 b6 10. O-O Bf5 11. Ng3 Bg6 12. Re1 Nd7 13. Bg5 c6 14. Ba6 Rb8 15. Bf4 b5 16. Bxb8 Nxb8 17. Bxb5 cxb5 18. Rxb5 Nbc6 19. Qe2 Qd7 20. h4 f6 21. Reb1 Nc8 22. Qd2 Nb6 23. h5 Bf7 24. Qf4 h6 25. a4 Nxa4 26. Rb7 Qe6 27. Nf5 Qe4 28. Qxe4 Rxe4 29. Rc7 Nxc3 30. Rbb7 Nd8 31. Rb8 Re8 32. Rxc3 Kh7 33. Rcc8 Re1+ 34. Kh2 Bxh5 35. Rxd8 Kg6 36. Rxd5 Bg4 37. Ne3 1-0

[Event "45th FIDE Olympiad 2024"]
[Site "Budapest"]
[Date "2024.09.12"]
[Round "2.24"]
[White "Hovhannisyan, Mher"]
[Black "Bok, Benjamin"]
[Result "1/2-1/2"]
[ECO "A04"]
[WhiteElo "2414"]
[BlackElo "2596"]
[Annotator "TA"]
[PlyCount "60"]
[EventDate "2024.09.05"]
[EventType "team-tourn"]
[EventCountry "HUN"]
[SourceTitle "playchess.com"]
[Source "ChessBase"]
[SourceQuality "1"]
[WhiteTeam "Belgium"]
[BlackTeam "Netherlands"]
[WhiteTeamCountry "BEL"]
[BlackTeamCountry "NED"]
[TimeControl "40/5400+30:1800+30"]

{[%evp 9,60,-29,0,-29,-15,-29,-20,-28,-18,-50,-29,-45,-27,-61,-67,-55,-46,-43,-48,-46,-43,-56,-26,-41,-41,-36,-12,-43,0,0,0,0,0,0,0,0,0,0,0,0,0,0,0,0,0,0,0,0,0,0,0,0,0]} 1. Nf3 {[%emt 0:00:04]} Nf6 {[%emt 0:00:08]} 2. g3 {[%emt 0:01:19]} c5 {[%emt 0:00:06]} 3. Bg2 {[%emt 0:00:47]} Nc6 {[%emt 0:00:05]} 4. d4 {[%emt 0:07:47]} cxd4 {[%emt 0:00:10]} 5. Nxd4 {[%emt 0:00:05]} e5 {[%emt 0:00:11]} 6. Nxc6 {[%emt 0:02:22]} dxc6 {[%emt 0:01:16]} 7. Qxd8+ {[%emt 0:04:34]} Kxd8 {[%emt 0:00:01]} 8. Nd2 {[%emt 0:02:11]} Nd5 {[%emt 0:02:00]} 9. c3 {[%emt 0:11:49]} Be6 {[%emt 0:01:37]} 10. O-O {[%emt 0:05:18]} f6 {[%emt 0:07:59]} 11. e4 {[%emt 0:05:46]} Nb6 {[%emt 0:00:19]} 12. f4 {[%emt 0:08:00]} Kc7 {[%emt 0:02:03]} 13. fxe5 {[%emt 0:17:01]} fxe5 {[%emt 0:00:11]} 14. b3 {[%emt 0:06:05]} Nd7 {[%emt 0:17:13]} 15. Nf3 {[%emt 0:00:57]} Bc5+ {[%emt 0:14:27]} 16. Kh1 {[%emt 0:00:07]} Rhf8 {[%emt 0:00:04]} 17. Bb2 {[%emt 0:01:33]} Rae8 {[%emt 0:21:12]} 18. Rad1 {[%emt 0:06:48]} h6 {[%emt 0:19:36]} 19. c4 {[%emt 0:05:55] The position is equal.} Bg4 {[%emt 0:03:53]} 20. h3 {[%emt 0:05:13]} Bxf3 {[%emt 0:00:15]} 21. Bxf3 {[%emt 0:00:23]} Bd4 {[%emt 0:04:42]} 22. Bxd4 {[%emt 0:00:23]} exd4 {[%emt 0:00:01]} 23. Rxd4 {[%emt 0:00:06]} Ne5 {[%emt 0:00:14]} 24. Kg2 {[%emt 0:00:47]} Rd8 {[%emt 0:02:58]} 25. Rxd8 {[%emt 0:01:19]} Rxd8 {[%emt 0:00:01]} 26. Rd1 {[%emt 0:00:52]} Rxd1 {[%emt 0:01:30]} ({Don't blunder} 26... Nxf3 $2 27. Rxd8 Ne1+ 28. Kf2 Kxd8 29. Kxe1 $16) 27. Bxd1 $11 {[%emt 0:00:01] KB-KN} Kd6 {[%emt 0:00:09]} 28. Kf2 {[%emt 0:00:21]} c5 {[%emt 0:00:36]} 29. Ke3 {[%emt 0:00:28]} g5 {[%emt 0:00:04]} 30. h4 {[%emt 0:04:31]} b6 {[%emt 0:01:15] Weighted Error Value: White=0.07 (flawless) /Black=0.07 (flawless) .  Inaccurate:     	White=3     	Black=2      OK:         	White=9     	Black=12     Best:        	White=2     	---} 1/2-1/2

[Event "45th FIDE Olympiad 2024"]
[Site "Budapest"]
[Date "2024.09.12"]
[Round "2.24"]
[White "Oratile, Kgotlane"]
[Black "Lhundrup, M Dorji"]
[Result "1-0"]
[ECO "B25"]
[WhiteElo "1975"]
[BlackElo "1715"]
[Annotator "NA"]
[PlyCount "81"]
[EventDate "2024.09.05"]
[EventType "team-tourn"]
[EventCountry "HUN"]
[SourceTitle "playchess.com"]
[Source "ChessBase"]
[SourceQuality "1"]
[WhiteTeam "Botswana"]
[BlackTeam "Bhutan"]
[WhiteTeamCountry "BOT"]
[BlackTeamCountry "BTN"]
[TimeControl "40/5400+30:1800+30"]

1. e4 c5 2. Nf3 d6 3. d3 Nc6 4. g3 g6 5. Bg2 Bg7 6. O-O e5 7. Nc3 Nge7 8. Nd2 O-O 9. Nc4 Nd4 10. a4 Be6 11. Nd5 h6 12. c3 Ndc6 13. Qb3 Rb8 14. a5 b5 15. axb6 axb6 16. Qb5 Qd7 17. Bxh6 Bxd5 18. exd5 Bxh6 19. dxc6 Qc7 20. Rfe1 Bg7 21. Ra6 Nc8 22. Rea1 d5 23. Bxd5 Rd8 24. Bg2 Rxd3 25. Nxe5 Rd2 26. Nd7 Nd6 27. Qb3 Rd8 28. Ra7 c4 29. Qb4 Qc8 30. Qxb6 Re8 31. Bf3 Rd3 32. Kg2 Nf5 33. Be4 Rd6 34. Ra8 Qxa8 35. Rxa8 Rxa8 36. Bxf5 gxf5 37. Qc5 Rd2 38. Nb6 Ra7 39. c7 Rxc7 40. Qxc7 Rxb2 41. Nd5 1-0